fUSD/lending_fUSD_20250112
["ID","MTS","AMOUNT","RATE_DAILY","PERIOD"]
[348673442,1736707834416,-673.34,9.542e-05,2]
[348673443,1736707834428,-500.0,9.542e-05,2]
[348673444,1736707834439,-1097.44,9.542e-05,2]
[348673445,1736707834452,-500.0,9.542e-05,2]
[348673446,1736707834464,-500.0,9.542e-05,2]
[348673447,1736707834477,-500.0,9.542e-05,2]
[348673448,1736707834489,-500.0,9.542e-05,2]
[348673449,1736707834501,-3113.5,9.542e-05,2]
[348673450,1736707834512,-500.0,9.542e-05,2]
[348673451,1736707834522,-500.0,9.542e-05,2]
[348673452,1736707834531,-500.0,9.542e-05,2]
[348673453,1736707834543,-3105.12,9.542e-05,2]
[348673454,1736707834554,-500.0,9.542e-05,2]
[348673455,1736707834566,-500.0,9.542e-05,2]
[348673456,1736707834578,-500.0,9.542e-05,2]
[348673457,1736707834588,-500.0,9.542e-05,2]
[348673458,1736707834601,-500.0,9.542e-05,2]
[348673459,1736707834612,-500.0,9.542e-05,2]
[348673460,1736707834625,-500.0,9.542e-05,2]
[348673461,1736707834636,-500.0,9.542e-05,2]
[348673462,1736707834648,-500.0,9.542e-05,2]
[348673463,1736707834663,-500.0,9.542e-05,2]
[348673464,1736707834675,-500.0,9.542e-05,2]
[348673465,1736707834689,-500.0,9.542e-05,2]
[348673466,1736707834702,-669.78,9.542e-05,2]
[348673467,1736707834714,-500.0,9.542e-05,2]
[348673468,1736707834727,-500.0,9.542e-05,2]
[348673469,1736707834741,-500.0,9.542e-05,2]
[348673470,1736707834752,-505.49551626,9.542e-05,2]
[348673471,1736707834764,-500.0,9.542e-05,2]
[348673472,1736707834776,-500.0,9.542e-05,2]
[348673473,1736707834787,-1285.9,9.542e-05,2]
[348673474,1736707834800,-500.0,9.542e-05,2]
[348673475,1736707834813,-500.0,9.542e-05,2]
[348673476,1736707834824,-560.16,9.542e-05,2]
[348673477,1736707834837,-500.0,9.542e-05,2]
[348673478,1736707834850,-500.0,9.542e-05,2]
[348673479,1736707834863,-500.0,9.542e-05,2]
[348673480,1736707834876,-1363.42,9.542e-05,2]
[348673481,1736707834888,-500.0,9.542e-05,2]
[348673482,1736707834899,-500.0,9.542e-05,2]
[348673483,1736707834912,-500.0,9.542e-05,2]
[348673484,1736707834923,-1987.97,9.542e-05,2]
[348673485,1736707834934,-500.0,9.542e-05,2]
[348673486,1736707834945,-500.0,9.542e-05,2]
[348673487,1736707834956,-797.92,9.542e-05,2]
[348673488,1736707834967,-1018.11,9.542e-05,2]
[348673489,1736707834978,-500.0,9.542e-05,2]
[348673490,1736707834990,-500.0,9.542e-05,2]
[348673491,1736707835003,-500.0,9.542e-05,2]
[348673492,1736707835016,-500.0,9.542e-05,2]
[348673493,1736707835027,-500.0,9.542e-05,2]
[348673494,1736707835037,-562.35,9.542e-05,2]
[348673495,1736707835048,-1231.51,9.542e-05,2]
[348673496,1736707835058,-500.0,9.542e-05,2]
[348673497,1736707835068,-500.0,9.542e-05,2]
[348673498,1736707835079,-657.745882,9.542e-05,2]
[348673499,1736707835090,-610.13,9.542e-05,2]
[348673500,1736707835103,-500.0,9.542e-05,2]
[348673501,1736707835117,-669.38812,9.542e-05,2]
[348673502,1736707835130,-500.0,9.542e-05,2]
[348673503,1736707835140,-574.59,9.542e-05,2]
[348673504,1736707835151,-2826.79,9.542e-05,2]
[348673505,1736707835161,-158.980371,9.542e-05,2]
[348673506,1736707835172,-500.0,9.542e-05,2]
[348673507,1736707835182,-693.53,9.542e-05,2]
[348673508,1736707835193,-998.96,9.542e-05,2]
[348673509,1736707835204,-500.0,9.542e-05,2]
[348673510,1736707835215,-556.94,9.542e-05,2]
[348673511,1736707835226,-500.0,9.542e-05,2]
[348673512,1736707835236,-500.0,9.542e-05,2]
[348673513,1736707835248,-237.65,9.542e-05,2]
[348673514,1736707835260,-549.98,9.542e-05,2]
[348673515,1736707835271,-186.881752,9.542e-05,2]
[348673516,1736707835284,-569.19,9.542e-05,2]
[348673517,1736707835295,-834.58,9.542e-05,2]
[348673518,1736707835307,-500.0,9.542e-05,2]
[348673519,1736707835318,-500.0,9.542e-05,2]
[348673520,1736707835329,-3016.98,9.542e-05,2]
[348673521,1736707835340,-634.92,9.542e-05,2]
[348673522,1736707835351,-500.0,9.542e-05,2]
[348673523,1736707835363,-790.12,9.542e-05,2]
[348673524,1736707835374,-680.97,9.543e-05,2]
[348673525,1736707835385,-500.0,9.543e-05,2]
[348673526,1736707835402,-766.46,9.543e-05,2]
[348673527,1736707835414,-856.6,9.543e-05,2]
[348673528,1736707835425,-870.78,9.543e-05,2]
[348673529,1736707835436,-698.49,9.543e-05,2]
[348673530,1736707835447,-1305.13,9.543e-05,2]
[348673531,1736707835459,-1480.46,9.543e-05,2]
[348673532,1736707835470,-1124.33,9.543e-05,2]
[348673533,1736707835482,-500.0,9.543e-05,2]
[348673534,1736707835493,-4337.54,9.543e-05,2]
[348673535,1736707835504,-699.44,9.543e-05,2]
[348673536,1736707835514,-556.99,9.543e-05,2]
[348673537,1736707835525,-598.57,9.543e-05,2]
[348673538,1736707835536,-1640.98,9.543e-05,2]
[348673539,1736707835547,-627.4,9.543e-05,2]
[348673540,1736707835558,-991.83,9.543e-05,2]
[348673541,1736707835569,-1266.94,9.543e-05,2]
[348673542,1736707835580,-638.66,9.543e-05,2]
[348673543,1736707835592,-1170.44,9.543e-05,2]
[348673544,1736707835603,-1799.85,9.543e-05,2]
[348673545,1736707835614,-1000.0,9.543e-05,2]
[348673546,1736707835625,-835.69,9.543e-05,2]
[348673547,1736707835635,-1057.95,9.543e-05,2]
[348673548,1736707835646,-500.0,9.543e-05,2]
[348673549,1736707835658,-1063.2,9.543e-05,2]
[348673550,1736707835669,-2004.7,9.543e-05,2]
[348673551,1736707835680,-500.0,9.543e-05,2]
[348673552,1736707835691,-740.46,9.543e-05,2]
[348673553,1736707835703,-1727.2,9.543e-05,2]
[348673554,1736707835715,-1772.16,9.543e-05,2]
[348673555,1736707835726,-892.82,9.544e-05,2]
[348673556,1736707835739,-856.57,9.544e-05,2]
[348673557,1736707835750,-500.0,9.544e-05,2]
[348673558,1736707835761,-6700.0,9.6e-05,3]
[348673559,1736707835772,-5000.0,9.653e-05,2]
[348673560,1736707835783,-1300.0,9.7e-05,3]
[348673561,1736707835794,-500.0,9.726e-05,2]
[348673562,1736707835805,-500.0,9.753e-05,2]
[348673563,1736707835816,-337.67252567,9.753e-05,2]
[348673564,1736707835827,-500.0,9.753e-05,2]
[348673565,1736707835839,-500.0,9.753e-05,2]
[348673566,1736707835850,-500.0,9.753e-05,2]
[348673567,1736707835861,-500.0,9.753e-05,2]
[348673568,1736707835871,-500.0,9.753e-05,2]
[348673569,1736707835882,-500.0,9.753e-05,2]
[348673570,1736707835893,-500.0,9.753e-05,2]
[348673571,1736707835903,-500.0,9.753e-05,2]
[348673572,1736707835915,-500.0,9.753e-05,2]
[348673573,1736707835927,-500.0,9.753e-05,2]
[348673574,1736707835937,-500.0,9.753e-05,2]
[348673575,1736707835949,-500.0,9.753e-05,2]
[348673576,1736707835960,-500.0,9.753e-05,2]
[348673577,1736707835971,-500.0,9.753e-05,2]
[348673578,1736707835982,-500.0,9.753e-05,2]
[348673579,1736707835993,-500.0,9.753e-05,2]
[348673580,1736707836004,-500.0,9.753e-05,2]
[348673581,1736707836015,-500.0,9.753e-05,2]
[348673582,1736707836026,-500.0,9.753e-05,2]
[348673583,1736707836037,-500.0,9.753e-05,2]
[348673584,1736707836048,-500.0,9.753e-05,2]
[348673585,1736707836059,-500.0,9.753e-05,2]
[348673586,1736707836070,-500.0,9.753e-05,2]
[348673587,1736707836081,-500.0,9.753e-05,2]
[348673588,1736707836092,-500.0,9.753e-05,2]
[348673589,1736707836102,-516.04,9.753e-05,2]
[348673590,1736707836113,-500.0,9.753e-05,2]
[348673591,1736707836124,-500.0,9.753e-05,2]
[348673592,1736707836135,-500.0,9.753e-05,2]
[348673593,1736707836146,-500.0,9.753e-05,2]
[348673594,1736707836157,-500.0,9.753e-05,2]
[348673595,1736707836167,-500.0,9.753e-05,2]
[348673596,1736707836178,-500.0,9.753e-05,2]
[348673597,1736707836189,-500.0,9.753e-05,2]
[348673598,1736707836200,-500.0,9.753e-05,2]
[348673599,1736707836211,-500.0,9.753e-05,2]
[348673600,1736707836222,-500.0,9.753e-05,2]
[348673601,1736707836233,-500.0,9.753e-05,2]
[348673602,1736707836243,-505.59846249,9.753e-05,2]
[348673603,1736707836254,-500.0,9.753e-05,2]
[348673604,1736707836264,-500.0,9.753e-05,2]
[348673605,1736707836275,-500.0,9.753e-05,2]
[348673606,1736707836286,-500.0,9.753e-05,2]
[348673607,1736707836296,-500.0,9.753e-05,2]
[348673608,1736707836307,-500.0,9.753e-05,2]
[348673609,1736707836318,-500.0,9.753e-05,2]
[348673610,1736707836328,-500.0,9.753e-05,2]
[348673611,1736707836340,-500.0,9.753e-05,2]
[348673612,1736707836351,-500.0,9.753e-05,2]
[348673613,1736707836361,-500.0,9.753e-05,2]
[348673614,1736707836372,-500.0,9.753e-05,2]
[348673615,1736707836383,-500.0,9.753e-05,2]
[348673616,1736707836393,-500.0,9.753e-05,2]
[348673617,1736707836404,-500.0,9.753e-05,2]
[348673618,1736707836415,-500.0,9.753e-05,2]
[348673619,1736707836426,-500.0,9.753e-05,2]
[348673620,1736707836437,-549.04,9.753e-05,2]
[348673621,1736707836447,-500.0,9.753e-05,2]
[348673622,1736707836458,-342.64499131,9.753e-05,2]
[348673623,1736707836469,-500.0,9.753e-05,2]
[348673624,1736707836479,-500.0,9.753e-05,2]
[348673625,1736707836490,-562.51,9.753e-05,2]
[348673626,1736707836501,-500.0,9.753e-05,2]
[348673627,1736707836512,-500.0,9.753e-05,2]
[348673628,1736707836523,-500.0,9.753e-05,2]
[348673629,1736707836534,-500.0,9.753e-05,2]
[348673630,1736707836544,-500.0,9.753e-05,2]
[348673631,1736707836555,-500.0,9.753e-05,2]
[348673632,1736707836566,-500.0,9.753e-05,2]
[348673633,1736707836576,-500.0,9.753e-05,2]
[348673634,1736707836587,-500.0,9.753e-05,2]
[348673635,1736707836597,-515.92,9.753e-05,2]
[348673636,1736707836608,-543.68,9.753e-05,2]
[348673637,1736707836619,-500.0,9.753e-05,2]
[348673638,1736707836629,-515.97,9.753e-05,2]
[348673639,1736707836640,-1511.36,9.753e-05,2]
[348673640,1736707836651,-500.0,9.753e-05,2]
[348673641,1736707836665,-500.0,9.753e-05,2]
[348673642,1736707836676,-500.0,9.753e-05,2]
[348673643,1736707836686,-500.0,9.753e-05,2]
[348673644,1736707836696,-1981.49,9.753e-05,2]
[348673645,1736707836708,-500.0,9.753e-05,2]
[348673646,1736707836719,-500.0,9.753e-05,2]
[348673647,1736707836730,-500.0,9.753e-05,2]
[348673648,1736707836742,-500.0,9.753e-05,2]
[348673649,1736707836752,-640.27,9.753e-05,2]
[348673650,1736707836763,-517.63,9.753e-05,2]
[348673651,1736707836773,-500.0,9.753e-05,2]
[348673652,1736707836784,-500.0,9.753e-05,2]
[348673653,1736707836795,-586.13,9.753e-05,2]
[348673654,1736707836805,-514.16064555,9.753e-05,2]
[348673655,1736707836816,-511.79,9.753e-05,2]
[348673656,1736707836827,-551.45,9.753e-05,2]
[348673657,1736707836838,-2654.72,9.753e-05,2]
[348673658,1736707836849,-500.0,9.753e-05,2]
[348673659,1736707836859,-666.88,9.753e-05,2]
[348673660,1736707836871,-500.0,9.753e-05,2]
[348673661,1736707836883,-500.0,9.753e-05,2]
[348673662,1736707836895,-543.46,9.753e-05,2]
[348673663,1736707836906,-500.0,9.753e-05,2]
[348673664,1736707836919,-543.8336091,9.753e-05,2]
[348673665,1736707836929,-500.0,9.753e-05,2]
[348673666,1736707836939,-500.0,9.753e-05,2]
[348673667,1736707836950,-500.0,9.753e-05,2]
[348673668,1736707836961,-500.0,9.753e-05,2]
[348673669,1736707836971,-569.97,9.753e-05,2]
[348673670,1736707836981,-500.0,9.753e-05,2]
[348673671,1736707836992,-735.06,9.753e-05,2]
[348673672,1736707837002,-531.99,9.753e-05,2]
[348673673,1736707837012,-500.0,9.753e-05,2]
[348673674,1736707837022,-500.0,9.753e-05,2]
[348673675,1736707837033,-500.0,9.753e-05,2]
[348673676,1736707837043,-500.0,9.753e-05,2]
[348673677,1736707837053,-538.63,9.753e-05,2]
[348673678,1736707837063,-500.0,9.753e-05,2]
[348673679,1736707837073,-506.10653137,9.753e-05,2]
[348673680,1736707837084,-500.0,9.753e-05,2]
[348673681,1736707837094,-1300.0,9.8e-05,3]
[348673682,1736707837105,-658.63,9.814e-05,2]
[348673683,1736707837116,-500.0,9.814e-05,2]
[348673684,1736707837131,-500.0,9.814e-05,2]
[348673685,1736707837142,-500.0,9.814e-05,2]
[348673686,1736707837153,-500.0,9.814e-05,2]
[348673687,1736707837165,-500.0,9.815e-05,2]
[348673688,1736707837176,-500.0,9.815e-05,2]
[348673689,1736707837186,-500.0,9.815e-05,2]
[348673690,1736707837197,-500.0,9.815e-05,2]
[348673691,1736707837209,-500.0,9.815e-05,2]
[348673692,1736707837220,-500.0,9.815e-05,2]
[348673693,1736707837231,-304.2912,9.815e-05,2]
[348673695,1736707837242,-500.0,9.815e-05,2]
[348673696,1736707837253,-500.0,9.815e-05,2]
[348673697,1736707837264,-757.74,9.815e-05,2]
[348673698,1736707837275,-1398.15,9.815e-05,2]
[348673699,1736707837286,-500.0,9.815e-05,2]
[348673700,1736707837297,-4266.25,9.815e-05,2]
[348673701,1736707837308,-646.18079167,9.815e-05,2]
[348673702,1736707837319,-500.0,9.815e-05,2]
[348673703,1736707837330,-668.55,9.815e-05,2]
[348673704,1736707837340,-754.47,9.815e-05,2]
[348673705,1736707837351,-500.0,9.815e-05,2]
[348673706,1736707837362,-628.83,9.815e-05,2]
[348673707,1736707837372,-500.0,9.815e-05,2]
[348673708,1736707837383,-608.78,9.815e-05,2]
[348673709,1736707837394,-500.0,9.815e-05,2]
[348673710,1736707837404,-1353.42,9.815e-05,2]
[348673711,1736707837415,-500.0,9.815e-05,2]
[348673712,1736707837427,-930.84,9.815e-05,2]
[348673716,1736707837720,-343.95670196,9.815e-05,2]
[348673717,1736707837825,-2046.81,9.815e-05,2]
[348673718,1736707837841,-500.0,9.815e-05,2]
[348673719,1736707837850,-500.0,9.815e-05,2]
[348673720,1736707837859,-733.46,9.815e-05,2]
[348673721,1736707837869,-1365.3,9.815e-05,2]
[348673722,1736707837878,-671.41,9.815e-05,2]
[348673723,1736707837887,-566.01,9.815e-05,2]
[348673724,1736707837897,-580.45,9.815e-05,2]
[348673725,1736707837906,-1668.88,9.815e-05,2]
[348673726,1736707837915,-1179.89,9.815e-05,2]
[348673727,1736707837924,-500.0,9.815e-05,2]
[348673728,1736707837934,-500.0,9.815e-05,2]
[348673729,1736707837943,-500.0,9.815e-05,2]
[348673730,1736707837952,-1577.16,9.815e-05,2]
[348673731,1736707837962,-850.73,9.815e-05,2]
[348673732,1736707837972,-894.91,9.815e-05,2]
[348673733,1736707837981,-500.0,9.815e-05,2]
[348673734,1736707837990,-1096.65,9.815e-05,2]
[348673735,1736707837998,-665.91,9.815e-05,2]
[348673736,1736707838007,-930.7,9.815e-05,2]
[348673737,1736707838016,-1632.98,9.815e-05,2]
[348673739,1736707838026,-500.0,9.815e-05,2]
[348673740,1736707838035,-2259.35,9.815e-05,2]
[348673742,1736707838044,-500.0,9.815e-05,2]
[348673745,1736707838054,-799.51,9.815e-05,2]
[348673746,1736707838064,-500.0,9.815e-05,2]
[348673748,1736707838073,-500.0,9.815e-05,2]
[348673750,1736707838082,-500.0,9.815e-05,2]
[348673752,1736707838091,-923.9,9.815e-05,2]
[348673754,1736707838100,-500.0,9.815e-05,2]
[348673756,1736707838109,-2763.86,9.815e-05,2]
[348673758,1736707838118,-500.0,9.815e-05,2]
[348673760,1736707838128,-1274.96,9.815e-05,2]
[348673762,1736707838137,-1288.28,9.815e-05,2]
[348673764,1736707838147,-500.0,9.816e-05,2]
[348673766,1736707838156,-500.0,9.816e-05,2]
[348673768,1736707838166,-500.0,9.816e-05,2]
[348673771,1736707838175,-500.0,9.816e-05,2]
[348673773,1736707838185,-500.0,9.816e-05,2]
[348673775,1736707838194,-668.96,9.816e-05,2]
[348673777,1736707838203,-500.0,9.816e-05,2]
[348673779,1736707838213,-500.0,9.816e-05,2]
[348673781,1736707838223,-500.0,9.816e-05,2]
[348673783,1736707838231,-500.0,9.816e-05,2]
[348673785,1736707838241,-500.0,9.816e-05,2]
[348673787,1736707838251,-261.01012217,9.816e-05,2]
[348673789,1736707838259,-500.0,9.816e-05,2]
[348673791,1736707838269,-500.0,9.816e-05,2]
[348673793,1736707838279,-500.0,9.816e-05,2]
[348673795,1736707838289,-500.0,9.816e-05,2]
[348673797,1736707838298,-500.0,9.816e-05,2]
[348673799,1736707838307,-500.0,9.816e-05,2]
[348673801,1736707838317,-500.0,9.816e-05,2]
[348673803,1736707838326,-506.62760637,9.816e-05,2]
[348673805,1736707838336,-500.0,9.816e-05,2]
[348673807,1736707838345,-500.0,9.816e-05,2]
[348673809,1736707838355,-500.0,9.816e-05,2]
[348673811,1736707838364,-500.0,9.816e-05,2]
[348673813,1736707838373,-500.0,9.816e-05,2]
[348673815,1736707838382,-500.0,9.816e-05,2]
[348673817,1736707838392,-500.0,9.816e-05,2]
[348673819,1736707838400,-500.0,9.816e-05,2]
[348673821,1736707838410,-500.0,9.816e-05,2]
[348673823,1736707838419,-500.0,9.816e-05,2]
[348673825,1736707838428,-500.0,9.816e-05,2]
[348673827,1736707838438,-500.0,9.816e-05,2]
[348673829,1736707838447,-500.0,9.816e-05,2]
[348673831,1736707838457,-500.0,9.816e-05,2]
[348673833,1736707838466,-500.0,9.816e-05,2]
[348673835,1736707838475,-500.0,9.816e-05,2]
[348673837,1736707838484,-500.0,9.816e-05,2]
[348673839,1736707838493,-500.0,9.816e-05,2]
[348673841,1736707838503,-500.0,9.816e-05,2]
[348673843,1736707838512,-500.0,9.816e-05,2]
[348673845,1736707838521,-500.0,9.816e-05,2]
[348673847,1736707838531,-532.46,9.816e-05,2]
[348673849,1736707838540,-500.0,9.816e-05,2]
[348673851,1736707838549,-500.0,9.816e-05,2]
[348673853,1736707838559,-500.0,9.816e-05,2]
[348673855,1736707838568,-634.36,9.816e-05,2]
[348673857,1736707838577,-500.0,9.816e-05,2]
[348673859,1736707838587,-673.34,9.816e-05,2]
[348673860,1736707838596,-500.0,9.816e-05,2]
[348673862,1736707838605,-1097.44,9.816e-05,2]
[348673864,1736707838615,-500.0,9.816e-05,2]
[348673866,1736707838624,-500.0,9.816e-05,2]
[348673868,1736707838633,-3113.5,9.816e-05,2]
[348673870,1736707838643,-500.0,9.816e-05,2]
[348673872,1736707838653,-500.0,9.816e-05,2]
[348673874,1736707838664,-3105.12,9.816e-05,2]
[348673876,1736707838675,-500.0,9.816e-05,2]
[348673878,1736707838684,-500.0,9.816e-05,2]
[348673880,1736707838694,-500.0,9.816e-05,2]
[348673882,1736707838705,-500.0,9.816e-05,2]
[348673884,1736707838716,-579.06,9.816e-05,2]
[348673887,1736707838725,-500.0,9.816e-05,2]
[348673889,1736707838735,-500.0,9.816e-05,2]
[348673890,1736707838744,-500.0,9.816e-05,2]
[348673892,1736707838753,-500.0,9.816e-05,2]
[348673894,1736707838764,-669.78,9.816e-05,2]
[348673897,1736707838774,-500.0,9.816e-05,2]
[348673899,1736707838783,-500.0,9.816e-05,2]
[348673901,1736707838792,-500.0,9.816e-05,2]
[348673903,1736707838802,-1285.9,9.816e-05,2]
[348673904,1736707838812,-500.0,9.816e-05,2]
[348673907,1736707838822,-560.16,9.816e-05,2]
[348673908,1736707838831,-1363.42,9.816e-05,2]
[348673911,1736707838841,-500.0,9.816e-05,2]
[348673913,1736707838851,-500.0,9.816e-05,2]
[348673914,1736707838860,-500.0,9.816e-05,2]
[348673916,1736707838870,-1987.97,9.816e-05,2]
[348673918,1736707838879,-500.0,9.816e-05,2]
[348673920,1736707838889,-500.0,9.816e-05,2]
[348673922,1736707838898,-797.92,9.816e-05,2]
[348673924,1736707838906,-1018.11,9.816e-05,2]
[348673926,1736707838916,-500.0,9.816e-05,2]
[348673927,1736707838925,-500.0,9.816e-05,2]
[348673928,1736707838933,-500.0,9.816e-05,2]
[348673929,1736707838943,-562.35,9.816e-05,2]
[348673930,1736707838952,-1231.51,9.816e-05,2]
[348673931,1736707838962,-500.0,9.816e-05,2]
[348673932,1736707838971,-500.0,9.816e-05,2]
[348673933,1736707838979,-657.745882,9.816e-05,2]
[348673934,1736707838988,-610.13,9.816e-05,2]
[348673935,1736707838997,-500.0,9.816e-05,2]
[348673936,1736707839007,-500.0,9.816e-05,2]
[348673937,1736707839016,-669.38812,9.816e-05,2]
[348673939,1736707839030,-574.59,9.816e-05,2]
[348673941,1736707839039,-2826.79,9.816e-05,2]
[348673943,1736707839049,-693.53,9.816e-05,2]
[348673945,1736707839059,-998.96,9.816e-05,2]
[348673947,1736707839069,-500.0,9.816e-05,2]
[348673949,1736707839078,-556.94,9.816e-05,2]
[348673951,1736707839087,-500.0,9.816e-05,2]
[348673953,1736707839097,-549.98,9.816e-05,2]
[348673955,1736707839106,-834.58,9.816e-05,2]
[348673957,1736707839116,-569.19,9.816e-05,2]
[348673959,1736707839125,-500.0,9.816e-05,2]
[348673961,1736707839135,-3016.98,9.816e-05,2]
[348673963,1736707839144,-500.0,9.816e-05,2]
[348673965,1736707839154,-634.92,9.816e-05,2]
[348673967,1736707839164,-790.12,9.816e-05,2]
[348673969,1736707839174,-893.81,9.817e-05,2]
[348673971,1736707839184,-680.97,9.817e-05,2]
[348673973,1736707839193,-500.0,9.817e-05,2]
[348673975,1736707839202,-766.46,9.817e-05,2]
[348673977,1736707839212,-856.6,9.817e-05,2]
[348673979,1736707839222,-870.78,9.817e-05,2]
[348673981,1736707839231,-698.49,9.817e-05,2]
[348673983,1736707839240,-1305.13,9.817e-05,2]
[348673985,1736707839249,-1480.46,9.817e-05,2]
[348673987,1736707839259,-1124.33,9.817e-05,2]
[348673989,1736707839268,-500.0,9.817e-05,2]
[348673991,1736707839278,-4337.54,9.817e-05,2]
[348673993,1736707839287,-699.44,9.817e-05,2]
[348673995,1736707839297,-556.99,9.817e-05,2]
[348673997,1736707839307,-598.57,9.817e-05,2]
[348674000,1736707839317,-1640.98,9.817e-05,2]
[348674001,1736707839326,-627.4,9.817e-05,2]
[348674003,1736707839335,-991.83,9.817e-05,2]
[348674005,1736707839345,-1266.94,9.817e-05,2]
[348674007,1736707839354,-638.66,9.817e-05,2]
[348674009,1736707839363,-1170.44,9.817e-05,2]
[348674011,1736707839373,-1799.85,9.817e-05,2]
[348674013,1736707839382,-1000.0,9.817e-05,2]
[348674015,1736707839391,-1057.95,9.817e-05,2]
[348674017,1736707839400,-835.69,9.817e-05,2]
[348674019,1736707839409,-500.0,9.817e-05,2]
[348674021,1736707839419,-1063.2,9.817e-05,2]
[348674023,1736707839428,-2004.7,9.817e-05,2]
[348674025,1736707839437,-500.0,9.817e-05,2]
[348674027,1736707839446,-740.46,9.817e-05,2]
[348674029,1736707839456,-1727.2,9.817e-05,2]
[348674031,1736707839465,-1772.16,9.817e-05,2]
[348674033,1736707839475,-1000.0,9.818e-05,2]
[348674035,1736707839484,-892.82,9.818e-05,2]
[348674037,1736707839494,-856.57,9.818e-05,2]
[348674039,1736707839503,-710.58,9.818e-05,2]
[348674042,1736707839513,-500.0,9.818e-05,2]
[348674045,1736707839523,-159.53148049,9.9e-05,2]
[348674048,1736707839532,-159.53148049,9.9e-05,2]
[348674050,1736707839542,-159.53148049,9.9e-05,2]
[348674053,1736707839551,-159.53148049,9.9e-05,2]
[348674056,1736707839561,-159.53148049,9.9e-05,2]
[348674058,1736707839570,-1300.0,9.9e-05,3]
[348674061,1736707839579,-500.0,9.903e-05,2]
[348674063,1736707839588,-159.53148049,9.903e-05,2]
[348674065,1736707839598,-445.12,9.906e-05,2]
[348674067,1736707839607,-15515.02249913,9.91e-05,2]
[348674069,1736707839617,-354.15391081,9.917e-05,2]
[348674071,1736707839626,-159.53148049,9.928e-05,2]
[348674073,1736707839636,-159.53148049,9.952e-05,2]
[348674075,1736707839645,-354.15391081,9.969e-05,2]
[348674077,1736707839654,-500.0,9.973e-05,2]
[348674079,1736707839668,-500.0,9.973e-05,2]
[348674081,1736707839678,-159.53148049,9.976e-05,2]
[348674083,1736707839687,-500.0,9.986e-05,2]
[348674086,1736707839697,-500.0,9.999e-05,2]
[348674087,1736707839708,-500.0,9.999e-05,2]
[348674090,1736707839719,-500.0,9.999e-05,2]
[348674091,1736707839728,-500.0,9.999e-05,2]
[348674093,1736707839739,-500.0,9.999e-05,2]
[348674095,1736707839749,-500.0,9.999e-05,2]
[348674097,1736707839758,-500.0,9.999e-05,2]
[348674099,1736707839767,-500.0,9.999e-05,2]
[348674101,1736707839777,-500.0,9.999e-05,2]
[348674103,1736707839786,-500.0,9.999e-05,2]
[348674105,1736707839795,-500.0,9.999e-05,2]
[348674107,1736707839805,-500.0,9.999e-05,2]
[348674109,1736707839814,-481.08,9.999e-05,2]
[348674111,1736707839825,-362864.15227325,0.0001,2]
[348674134,1736707840137,-1378.66431652,0.0001,2]
[348674135,1736707840148,-783.16605931,0.0001,2]
[348674136,1736707840159,-3096.154,0.0001,2]
[348674137,1736707840171,-506.6,0.0001,2]
[348674139,1736707840521,-2525.0000005,0.0001,2]
[348674140,1736707840533,-3723.68140962,0.0001,2]
[348674141,1736707840543,-1484.80265515,0.0001,2]
[348674142,1736707840566,-433.70453,0.0001,2]
[348674143,1736707840577,-22450.0,0.0001,2]
[348674144,1736707840588,-520.41,0.0001,2]
[348674145,1736707841913,-500.0,9.54e-05,2]
[348674146,1736707841923,-500.0,9.54e-05,2]
[348674147,1736707841934,-500.0,9.542e-05,2]
[348674148,1736707841944,-500.0,9.543e-05,2]
[348674149,1736707841954,-500.0,9.753e-05,2]
[348674150,1736707841963,-500.0,9.814e-05,2]
[348674151,1736707841972,-484.84864099,9.814e-05,2]
[348674152,1736707841991,-15.15135901,9.814e-05,2]